bitfinex/quotes_SOLUSD_20240902
["timestamp","ask_amount","ask_price","bid_price","bid_amount"]
[1725240881431,0.12549,130.62,130.56,33.4594]
[1725240881721,0.12549,130.62,130.56,26.8067]
[1725240881930,20.12549,130.62,130.55,7.6598]
[1725240882232,7.6575,130.59,130.54,23.4513]
[1725240882430,7.6575,130.59,130.55,7.6597]
[1725240882924,20.0,130.62,130.51,7.6619]
[1725240883117,45.12549,130.61,130.52,7.6615]
[1725240883523,7.6588,130.57,130.53,7.661]
[1725240884021,7.6582,130.58,130.53,7.661]
[1725240884808,19.1431,130.6,130.5,15.791]
[1725240885037,7.6605,130.54,130.5,23.4537]
[1725240885327,7.66,130.55,130.51,7.662]
[1725240885525,7.6594,130.56,130.51,7.662]
[1725240886409,7.66,130.55,130.51,7.662]
[1725240886809,7.66,130.55,130.5,23.4536]
[1725240888410,7.66,130.55,130.5,7.6626]
[1725240893523,7.6605,130.54,130.5,7.6626]
[1725240894833,7.6605,130.54,130.49,33.3517]
[1725240896323,7.66,130.55,130.5,7.6628]
[1725240897542,7.6605,130.54,130.5,7.6628]
[1725240898432,7.6611,130.53,130.49,33.3517]
[1725240899212,7.6611,130.53,130.49,26.8211]
[1725240899420,7.6611,130.53,130.49,19.1578]
[1725240899630,7.6617,130.52,130.48,7.6639]
[1725240899831,7.6629,130.5,130.46,35.0002]
[1725240900343,7.6638,130.49,130.44,7.6659]
[1725240901833,7.6638,130.49,130.45,7.6657]
[1725240902045,7.6629,130.5,130.46,9.19779353]
[1725240902744,7.6629,130.5,130.46,7.665]
[1725240903126,15.2309,130.55,130.47,7.6644]
[1725240903318,65.12549,130.54,130.47,7.6644]
[1725240903642,7.6622,130.51,130.46,7.665]
[1725240904019,7.6628,130.5,130.46,7.665]
[1725240904224,7.6628,130.5,130.46,7.165]
[1725240906145,7.6622,130.51,130.47,9.19712474]
[1725240906728,65.12549,130.54,130.48,1.5325221]
[1725240906729,7.6615,130.53,130.48,1.5325221]
[1725240906930,7.6615,130.53,130.47,19.161]
[1725240907247,20.0,130.54,130.42,21.4682]
[1725240907455,19.1546,130.52,130.44,26.8312]
[1725240907652,20.0,130.51,130.44,19.165]
[1725240907866,7.664,130.48,130.44,19.165]
[1725240908153,7.6646,130.47,130.42,29.1355]
[1725240908956,7.6646,130.47,130.43,7.6669]
[1725240909158,7.6653,130.46,130.41,19.1695]
[1725240909454,7.6659,130.45,130.41,19.1695]
[1725240909851,7.6659,130.45,130.42,1.53336008]
[1725240910039,7.6652,130.46,130.42,1.53318407]
[1725240910954,7.6658,130.45,130.41,19.1695]
[1725240911254,7.6658,130.45,130.41,20.70283961]
[1725240911645,7.6665,130.44,130.39,22.7783]
[1725240911829,7.6665,130.44,130.39,7.6692]
[1725240912030,7.6669,130.43,130.38,7.6698]
[1725240913251,7.6675,130.42,130.37,26.845]
[1725240915066,7.6668,130.44,130.39,7.6692]
[1725240915357,7.6678,130.42,130.37,26.8446]
[1725240915530,7.6678,130.42,130.34,6.0531]
[1725240915531,7.6692,130.4,130.35,7.6715]
[1725240915951,7.6704,130.38,130.33,7.6726]
[1725240916327,7.79589,130.37,130.32,7.6734]
[1725240916732,7.67,130.38,130.33,7.6727]
[1725240917445,7.6693,130.39,130.34,7.6721]
[1725240917632,20.0,130.38,130.34,7.6721]
[1725240919337,20.0,130.38,130.35,9.20561164]
[1725240919864,20.0,130.38,130.35,7.6715]
[1725240920255,20.0,130.4,130.35,7.6715]
[1725240920466,0.12549,130.39,130.35,7.6715]
[1725240920651,7.6699,130.38,130.33,26.8533]
[1725240921036,7.6705,130.37,130.33,26.8533]
[1725240922455,0.12549,130.36,130.33,26.8533]
[1725240922636,7.6705,130.37,130.33,26.8533]
[1725240922836,7.6699,130.38,130.33,26.8533]
[1725240923067,7.6694,130.39,130.34,7.672]
[1725240923259,20.0,130.38,130.34,7.672]
[1725240924463,20.0,130.38,130.35,1.53404911]
[1725240924665,20.0,130.38,130.34,7.672]
[1725240925169,20.0,130.38,130.34,9.20620812]
[1725240925478,20.0,130.38,130.34,7.672]
[1725240925667,20.0,130.38,130.35,7.6715]
[1725240926664,27.6698,130.38,130.34,7.6721]
[1725240926846,7.79589,130.37,130.33,19.1811]
[1725240927160,20.0,130.36,130.33,19.1811]
[1725240927362,7.671,130.36,130.32,7.6733]
[1725240928149,7.671,130.36,130.31,7.6738]
[1725240928354,0.12549,130.35,130.31,7.6738]
[1725240930266,22.34839,130.35,130.24,25.4787]
[1725240930494,7.6757,130.28,130.24,25.4787]
[1725240930647,19.1834,130.33,130.24,19.1943]
[1725240930852,19.1857,130.31,130.21,25.4839]
[1725240931177,65.0,130.3,130.22,7.6788]
[1725240931460,65.0,130.3,130.23,7.6785]
[1725240931461,7.6762,130.28,130.23,7.6785]
[1725240931645,29.8982,130.29,130.24,7.678]
[1725240931961,27.80139,130.28,130.23,7.6783]
[1725240932169,20.0,130.28,130.24,7.6781]
[1725240932369,20.0,130.28,130.23,7.6786]
[1725240932370,27.6757,130.28,130.23,7.6786]
[1725240932546,7.80189,130.27,130.22,7.6792]
[1725240933542,7.80189,130.27,130.21,19.1995]
[1725240933743,20.0,130.26,130.18,25.4883]
[1725240933944,45.12549,130.25,130.19,1.53586557]
[1725240934248,0.12549,130.25,130.19,1.53586557]
[1725240934666,0.12549,130.25,130.18,25.4883]
[1725240935261,7.80309,130.25,130.19,7.6805]
[1725240935781,7.6782,130.24,130.19,7.6805]
[1725240936975,7.80309,130.25,130.2,7.6804]
[1725240938783,20.0,130.28,130.21,7.6797]
[1725240938971,7.6764,130.27,130.22,7.6792]
[1725240939150,20.0,130.26,130.22,7.6792]
[1725240940877,27.677,130.26,130.22,7.6792]
[1725240941175,20.0,130.26,130.22,7.6792]
[1725240944296,23.56235547,130.29,130.16,86.0383053]
[1725240944463,7.6758,130.28,130.19,38.4027]
[1725240944672,22.2229,130.29,130.21,19.1991]
[1725240944673,27.6765,130.27,130.21,19.1991]
[1725240944859,20.0,130.27,130.22,7.6791]
[1725240945066,20.0,130.27,130.21,19.1991]
[1725240945067,7.6775,130.25,130.21,19.1991]
[1725240945281,20.0,130.28,130.19,7.6809]
[1725240945282,7.6782,130.24,130.19,7.6809]
[1725240945468,7.6788,130.23,130.18,26.8849]
[1725240945995,7.6793,130.22,130.18,26.8849]
[1725240946583,7.6793,130.22,130.18,19.2034]
[1725240946881,0.12549,130.21,130.18,19.2034]
[1725240947189,0.12549,130.21,130.18,20.73959266]
[1725240947570,7.6793,130.22,130.18,20.73959266]
[1725240949792,7.68,130.21,130.16,7.6827]
[1725240949973,0.12549,130.2,130.16,7.6827]
[1725240950389,7.80609,130.2,130.16,7.6827]
[1725240951094,7.80609,130.2,130.13,22.587]
[1725240951095,7.6817,130.18,130.13,7.6841]
[1725240951468,0.12549,130.17,130.13,7.6841]
[1725240952098,7.80779,130.17,130.13,7.6841]
[1725240954876,7.6838,130.15,130.09,57.6498]
[1725240955190,7.6838,130.15,130.1,7.6859]
[1725240955505,0.12549,130.14,130.1,7.6859]
[1725240956090,7.80959,130.14,130.09,26.904]
[1725240956277,0.12549,130.14,130.1,7.6863]
[1725240956796,0.12549,130.14,130.1,9.22329141]
[1725240957302,0.12549,130.14,130.1,7.6863]
[1725240957500,7.80969,130.14,130.09,26.904]
[1725240958198,7.6846,130.13,130.09,26.904]
[1725240959482,0.12549,130.14,130.09,19.2172]
[1725240959803,27.80949,130.14,130.09,26.904]
[1725240960590,27.80949,130.14,130.06,19.221]
[1725240960591,7.6858,130.11,130.06,19.221]
[1725240961099,23.0795,130.11,130.06,19.221]
[1725240961304,23.0795,130.11,130.03,16.3697]
[1725240961305,6.6638,130.1,129.99,299.3786]
[1725240961489,6.6638,130.1,129.92,387.9]
[1725240961490,45.12549,130.09,129.96,15.9406]
[1725240961687,7.6882,130.07,130.02,7.691]
[1725240961880,20.0,130.06,130.02,7.691]
[1725240962075,27.6887,130.06,130.0,26.9215]
[1725240962292,20.0,130.06,130.01,1.53815293]
[1725240962510,20.0,130.08,130.02,19.2268]
[1725240962803,0.12549,130.07,130.04,7.6898]
[1725240963390,0.12549,130.07,130.03,7.6904]
[1725240963704,0.12549,130.07,130.03,9.22833894]
[1725240963903,27.6875,130.08,130.03,9.22833894]
[1725240964088,20.0,130.08,130.05,7.6891]
[1725240964301,20.0,130.09,130.01,19.2286]
[1725240964608,7.6886,130.07,130.02,9.22898673]
[1725240965202,20.0,130.09,130.01,19.2286]
[1725240965412,0.12549,130.08,130.01,19.2286]
[1725240965612,7.81309,130.08,130.03,7.6904]
[1725240965814,52.81309,130.08,130.03,7.6904]
[1725240966323,7.6883,130.07,130.02,9.22900214]
[1725240966817,0.12549,130.06,130.02,9.22900214]
[1725240967000,27.81419,130.06,130.01,26.9201]
[1725240967198,27.81419,130.06,130.02,1.53814444]
[1725240967516,20.12549,130.06,130.02,9.22886914]
[1725240968307,20.12549,130.06,129.97,19.2341]
[1725240968618,22.8698,130.04,129.99,7.6928]
[1725240968823,22.8698,130.04,129.97,19.2341]
[1725240968824,15.1795,130.04,130.01,7.6915]
[1725240969396,15.1795,130.04,130.0,26.9225]
[1725240970120,22.8694,130.04,130.0,19.2303]
[1725240970325,0.12549,130.03,130.0,19.2303]
[1725240970613,20.0,130.07,130.0,19.2303]
[1725240970614,43.7252,130.07,130.01,7.6916]
[1725240970817,23.7252,130.07,130.01,7.6916]
[1725240971010,27.6892,130.06,130.0,26.9225]
[1725240971318,20.0,130.06,130.01,9.22922872]
[1725240971702,20.0,130.06,130.01,7.6911]
[1725240972007,20.0,130.06,130.0,19.2303]
[1725240972206,15.4345,130.11,130.01,46.53778893]
[1725240972410,23.1203,130.11,130.04,19.2239]
[1725240973028,14.3503,130.1,130.05,7.6892]
[1725240973518,6.6638,130.1,130.06,9.22602464]
[1725240974028,15.4345,130.11,130.08,7.6875]
[1725240974323,6.0733,130.13,130.08,7.6875]
[1725240974525,7.6857,130.12,130.06,26.9095]
[1725240974703,7.6865,130.1,130.04,7.6893]
[1725240975107,7.6865,130.1,130.05,7.689]
[1725240976029,0.12549,130.09,130.05,7.689]
[1725240976320,0.12549,130.09,130.03,19.2256]
[1725240976501,7.6881,130.08,130.03,26.916]
[1725240977124,0.12549,130.07,130.03,26.916]
[1725240977621,7.81359,130.07,130.03,26.916]
[1725240978011,0.12549,130.07,130.03,26.916]
[1725240978719,16.0239,130.08,130.04,7.6897]
[1725240978917,27.6869,130.09,130.06,7.6886]
[1725240978918,20.0,130.09,130.06,7.6886]
[1725240979102,20.0,130.1,130.06,7.6886]
[1725240979329,6.0733,130.13,130.07,1.53743416]
[1725240979514,20.0,130.12,130.08,7.6874]
[1725240979725,27.6853,130.12,130.07,26.9078]
[1725240980024,20.0,130.12,130.08,9.22477822]
[1725240980226,20.0,130.12,130.08,7.6875]
[1725240981006,16.0239,130.14,130.1,7.6861]
[1725240981231,16.0239,130.14,130.09,20.75393389]
[1725240981232,16.0239,130.14,130.11,7.6857]
[1725240981414,16.0239,130.14,130.1,7.6863]
[1725240982004,7.6839,130.15,130.11,7.6857]
[1725240982204,20.0,130.14,130.12,1.53680213]
[1725240982434,20.0,130.14,130.12,7.6851]
[1725240982617,27.6829,130.16,130.12,1.53680768]
[1725240982818,27.6829,130.16,130.11,7.6857]
[1725240983225,20.0,130.16,130.12,9.22180245]
[1725240984118,22.2174,130.17,130.13,7.6844]
[1725240984319,15.6856,130.17,130.14,1.53658432]
[1725240984629,7.6817,130.18,130.13,7.6844]
[1725240984833,19.2041,130.19,130.08,19.2188]
[1725240985328,7.6835,130.15,130.1,7.6859]
[1725240985739,7.6823,130.17,130.13,7.6845]
[1725240985910,20.12549,130.16,130.1,19.2152]
[1725240986110,20.0,130.16,130.13,7.6845]
[1725240986513,27.6824,130.17,130.12,26.8973]
[1725240986719,7.6828,130.16,130.12,19.2123]
[1725240987131,7.6828,130.16,130.12,20.74910097]
[1725240987635,7.6828,130.16,130.12,19.2123]
[1725240987938,20.12549,130.15,130.09,19.2172]
[1725240988114,0.12549,130.15,130.09,19.2172]
[1725240988309,0.12549,130.15,130.04,15.567]
[1725240988310,7.6858,130.11,130.06,26.9093]
[1725240988530,7.6853,130.12,130.07,9.22519617]
[1725240988710,7.6853,130.12,130.08,1.53727943]
[1725240988914,6.1689,130.13,130.06,19.2211]
[1725240989241,20.0,130.12,130.06,19.2211]
[1725240990572,20.0,130.12,130.09,7.6869]
[1725240991040,27.6855,130.12,130.07,7.6876]
[1725240991242,27.6855,130.12,130.08,1.53710444]
[1725240991437,20.0,130.12,130.08,9.22450444]
[1725240992331,20.0,130.12,130.09,7.6869]
[1725240992527,20.0,130.12,130.1,7.6863]
[1725240992846,20.0,130.12,130.09,7.6868]
[1725240993148,20.0,130.12,130.08,19.2179]
[1725240993149,22.8714,130.15,130.08,19.2179]
[1725240993445,20.0,130.14,130.1,1.5370423]
[1725240993653,20.0,130.14,130.11,1.53689588]
[1725240994022,15.1878,130.15,130.11,7.6857]
[1725240994344,15.1878,130.15,130.12,1.53675185]
[1725240994533,22.8718,130.15,130.1,19.2154]
[1725240994933,22.8718,130.15,130.1,26.9016]
[1725240995130,22.8718,130.15,130.11,1.53695252]
[1725240995536,22.8718,130.15,130.1,26.9016]
[1725240995737,15.1878,130.15,130.07,19.2199]
[1725240995926,65.12549,130.14,130.07,19.2199]
[1725240996314,65.12549,130.14,130.02,38.4529]
[1725240996315,7.6859,130.11,130.08,1.53736032]
[1725240996515,7.6866,130.1,130.05,7.6893]
[1725240996944,7.6871,130.09,130.04,19.2245]
[1725240997122,7.6864,130.1,130.05,7.6888]
[1725241000354,7.687,130.09,130.05,7.6888]
[1725241000849,7.6864,130.1,130.06,7.6885]
[1725241001030,6.287,130.11,130.07,9.22533128]
[1725241001231,6.287,130.11,130.02,38.4529]
[1725241001232,7.6847,130.13,130.09,7.6867]
[1725241001545,20.0,130.12,130.08,26.9056]
[1725241001937,27.6852,130.12,130.08,26.9056]
[1725241002954,27.6852,130.12,130.02,70.1460053]
[1725241002955,7.6859,130.11,130.07,7.6877]
[1725241003133,7.6859,130.11,130.06,7.6886]
[1725241003457,20.12549,130.1,130.05,26.9117]
[1725241003667,7.6877,130.08,130.01,16.5244]
[1725241003836,7.6877,130.08,130.04,7.6897]
[1725241004860,7.6871,130.09,130.04,7.6897]
[1725241006543,7.6871,130.09,130.05,7.6893]
[1725241007370,7.6871,130.09,130.04,26.9136]
[1725241007659,7.6876,130.08,130.04,26.9136]
[1725241007863,7.6871,130.09,130.05,1.53763959]
[1725241008156,7.6871,130.09,130.04,26.9136]
[1725241008677,7.6876,130.08,130.04,26.9136]
[1725241010061,6.5157,130.08,129.98,16.2212]
[1725241010273,84.2209,130.07,129.99,7.6927]
[1725241010579,0.12549,130.06,129.99,7.6927]
[1725241010739,0.12549,130.06,129.99,9.23093916]
[1725241010951,7.6905,130.03,129.98,26.9262]
[1725241011144,7.6915,130.02,129.98,19.2329]
[1725241011475,23.5379,130.03,129.99,1.53845029]
[1725241011646,23.5379,130.03,129.98,26.9262]
[1725241011974,23.5379,130.03,129.99,7.6927]
[1725241012159,15.97289,130.06,130.0,1.53810786]
[1725241012472,20.0,130.05,130.01,7.6917]
[1725241012670,15.97289,130.06,130.01,7.6917]
[1725241012879,15.8474,130.06,130.02,7.6906]
[1725241013042,7.6883,130.07,130.03,7.6904]
[1725241013355,20.0,130.06,130.02,7.6909]
[1725241013752,20.0,130.06,130.03,7.6903]
[1725241013956,6.5157,130.08,129.98,31.6931053]
[1725241014157,6.5157,130.08,129.96,38.4719]
[1725241014158,15.8821,130.09,130.02,15.7209]
[1725241014354,15.8821,130.09,130.05,7.6892]
[1725241015350,15.8821,130.09,130.06,7.6886]
[1725241015553,6.4329,130.13,130.06,7.6886]
[1725241015846,30.7512,130.13,130.08,7.6875]
[1725241016381,30.7512,130.13,130.09,7.6869]
[1725241016552,30.7512,130.13,130.06,19.2209]
[1725241016553,30.7487,130.17,130.12,7.6852]
[1725241016758,23.0662,130.17,130.11,7.6857]
[1725241017156,7.6833,130.16,130.11,26.9001]
[1725241018283,27.6834,130.15,130.11,19.2144]
[1725241018575,7.684,130.14,130.1,7.6862]
[1725241018978,20.0,130.15,130.11,1.53698913]
[1725241019155,20.0,130.15,130.1,7.6862]
[1725241021271,20.0,130.15,130.11,9.22252638]
[1725241021686,30.7485,130.17,130.12,7.6852]
[1725241021866,27.80839,130.16,130.12,7.6852]
[1725241022177,20.12549,130.16,130.1,19.215]
[1725241022485,20.12549,130.16,130.09,7.6865]
[1725241022660,45.0,130.15,130.09,7.6865]
[1725241022862,20.12549,130.14,130.09,7.6865]
[1725241023363,7.6846,130.13,130.08,7.6871]
[1725241023688,27.80959,130.14,130.08,1.53718591]
[1725241023856,20.0,130.14,130.09,19.2167]
[1725241024055,7.6835,130.15,130.1,7.6859]
[1725241024259,20.0,130.14,130.1,7.6859]
[1725241024980,27.6841,130.14,130.09,26.9035]
[1725241025162,0.12549,130.13,130.09,26.9035]
[1725241025553,7.81019,130.13,130.09,26.9035]
[1725241025756,7.81019,130.13,130.09,19.2167]
[1725241026759,7.6852,130.12,130.09,19.2167]
[1725241026963,7.6852,130.12,130.08,7.6874]
[1725241027257,0.12549,130.13,130.04,22.5041]
[1725241027258,0.12549,130.13,130.06,26.9095]
[1725241027464,0.12549,130.13,130.07,1.53745624]
[1725241027676,7.6852,130.12,130.07,7.6881]
[1725241027878,20.0,130.11,130.07,7.6881]
[1725241028117,20.0,130.11,130.08,7.6874]
[1725241028297,20.0,130.11,130.09,7.6868]
[1725241028588,20.0,130.12,130.09,7.6868]
[1725241029490,27.6853,130.12,130.07,7.6875]
[1725241030261,7.6859,130.11,130.07,7.6875]
[1725241030600,0.12549,130.1,130.06,28.44687367]
[1725241030769,7.687,130.09,130.05,7.6891]
[1725241030975,0.12549,130.1,130.03,19.2255]
[1725241031190,20.12549,130.1,130.05,19.2225]
[1725241031486,27.81199,130.1,130.05,26.9117]
[1725241031662,45.0,130.09,130.02,26.9178]
[1725241031860,7.6893,130.05,129.98,16.1546]
[1725241032066,7.6893,130.05,130.0,7.6921]
[1725241032483,27.6901,130.04,129.99,26.9241]
[1725241032990,7.6905,130.03,129.99,19.2314]
[1725241033368,20.0,130.04,129.99,19.2314]
[1725241033567,19.2197,130.08,129.96,38.4719]
[1725241033568,21.797,130.08,130.0,39.99916298]
[1725241033767,20.0,130.07,130.04,7.6898]
[1725241034591,20.0,130.07,130.03,26.9158]
[1725241035088,20.0,130.07,130.04,7.6897]
[1725241036796,7.6904,130.04,130.0,19.2302]
[1725241037279,20.0,130.07,130.0,19.2302]
[1725241037484,0.12549,130.06,130.0,19.2302]
[1725241037876,7.6894,130.05,130.0,19.2302]
[1725241038079,7.6894,130.05,130.0,26.922]
[1725241039370,7.69,130.04,130.0,26.922]
[1725241039695,7.6894,130.05,130.0,26.922]
[1725241041101,7.69,130.04,130.0,26.922]
[1725241042504,7.69,130.04,130.0,19.2302]
[1725241043500,7.69,130.04,130.0,26.9223]
[1725241043715,7.69,130.04,130.01,1.53815659]
[1725241044002,7.69,130.04,130.01,1.53813386]
[1725241044180,7.69,130.04,130.0,26.9223]
[1725241045612,20.0,130.07,130.01,7.6915]
[1725241045801,0.12549,130.06,130.01,7.6915]
[1725241046602,27.6882,130.07,130.02,7.6909]
[1725241046798,7.6882,130.07,130.02,7.6909]
[1725241047192,15.3918,130.08,130.03,1.53777326]
[1725241047395,7.6874,130.09,130.03,1.53777326]
[1725241047795,7.6876,130.08,130.03,9.22807326]
[1725241047988,7.6876,130.08,130.03,7.6903]
[1725241048311,27.6882,130.07,130.02,26.9175]
[1725241048485,20.0,130.07,130.03,9.22813305]
[1725241048681,20.0,130.07,130.03,7.6903]
[1725241049321,20.0,130.07,130.04,1.53769448]
[1725241049906,7.6865,130.1,130.05,7.6891]
[1725241050500,7.6871,130.09,130.04,26.9139]
[1725241051100,7.6865,130.1,130.05,7.6891]
[1725241051507,20.0,130.09,130.05,7.6891]
[1725241052328,20.0,130.09,130.06,9.22604906]
[1725241052623,7.6847,130.13,130.09,7.6869]
[1725241052789,15.8382,130.14,130.03,19.2254]
[1725241053119,15.8382,130.14,130.0,21.2999]
[1725241053120,7.6883,130.07,130.02,7.691]
[1725241053299,7.6877,130.08,130.03,7.6904]
[1725241053691,7.6887,130.06,130.02,19.2268]
[1725241054118,7.6883,130.07,130.02,26.9178]
[1725241054409,23.5433,130.09,130.02,19.2268]
[1725241054719,20.0,130.08,130.03,1.53760911]
[1725241055512,20.0,130.08,130.04,7.6898]
[1725241056919,27.6876,130.08,130.03,7.6903]
[1725241058223,20.0,130.08,130.05,7.689]
[1725241058423,7.6865,130.1,130.05,9.22658936]
[1725241058717,7.6859,130.11,130.06,9.22600891]
[1725241058917,15.0154,130.13,130.04,33.2111]
[1725241059120,45.0,130.12,130.04,19.2241]
[1725241059500,7.6876,130.08,130.04,19.2241]
[1725241060210,7.6871,130.09,130.04,26.9138]
[1725241060596,7.6891,130.06,130.01,19.2283]
[1725241060796,7.6891,130.06,130.01,26.9198]
[1725241061017,7.6881,130.07,130.02,7.6909]
[1725241061192,7.6881,130.07,130.03,7.6905]
[1725241061806,7.6877,130.08,130.03,7.6905]
[1725241062014,20.0,130.07,130.03,7.6905]
[1725241062928,27.6882,130.07,130.03,7.6905]
[1725241064024,45.0,130.12,130.07,19.2194]
[1725241064025,7.6853,130.12,130.07,19.2194]
[1725241064220,7.6869,130.09,130.0,61.31184175]
[1725241064522,7.6854,130.12,130.07,7.6875]
[1725241065316,7.6854,130.12,130.07,26.9079]
[1725241065827,20.0,130.11,130.07,26.9079]
[1725241067427,27.6858,130.11,130.07,26.9079]
[1725241068134,20.0,130.11,130.07,26.9079]
[1725241068427,15.5535,130.16,130.08,1.53729414]
[1725241068630,20.0,130.13,130.08,1.53729414]
[1725241068803,20.0,130.15,130.08,1.53729414]
[1725241069398,7.684,130.14,130.09,7.6869]
[1725241069598,20.0,130.13,130.1,1.53708197]
[1725241070215,20.0,130.13,130.1,1.53708625]
[1725241070618,20.0,130.13,130.09,7.6869]
[1725241071600,20.0,130.13,130.08,7.6875]
[1725241071802,7.6859,130.11,130.07,19.2204]
[1725241072825,7.81079,130.12,130.07,26.9084]
[1725241073027,7.81079,130.12,130.08,1.5372811]
[1725241074136,7.6846,130.13,130.08,7.6875]
[1725241074308,20.0,130.12,130.09,7.6868]
[1725241075328,27.6853,130.12,130.08,7.6875]
[1725241075524,27.6853,130.12,130.07,26.9085]
[1725241075525,7.6858,130.11,130.07,26.9085]
[1725241075927,7.6858,130.11,130.07,19.2204]
[1725241076329,7.6865,130.1,130.06,7.6886]
[1725241077316,7.6859,130.11,130.06,7.6886]
[1725241077518,7.6859,130.11,130.07,1.53737918]
[1725241078625,7.6859,130.11,130.06,7.6886]
[1725241079807,7.6859,130.11,130.07,1.53738291]
[1725241080213,7.6859,130.11,130.07,1.53737787]
[1725241080423,7.6859,130.11,130.07,9.22547787]
[1725241081018,19.2107,130.14,130.04,19.2239]
[1725241081245,7.6879,130.08,130.04,19.2239]
[1725241081438,7.6883,130.07,130.02,7.6909]
[1725241081743,7.6883,130.07,130.01,19.2282]
[1725241082338,7.6894,130.05,130.01,19.2282]
[1725241082521,7.6888,130.06,130.01,19.2282]
[1725241083317,7.6888,130.06,130.01,26.9194]
[1725241084742,7.6888,130.06,130.02,9.22878519]
[1725241085045,7.6888,130.06,130.02,7.6909]
[1725241085626,7.6888,130.06,130.02,9.22883527]
[1725241085832,7.6888,130.06,130.02,7.6909]
[1725241086247,6.4149,130.08,130.01,19.2282]
[1725241086540,80.13199,130.07,130.01,19.2282]
[1725241087422,7.69,130.04,130.01,19.2282]
[1725241088156,7.69,130.04,130.01,20.76630667]
[1725241089163,7.69,130.04,130.01,19.2282]
[1725241090243,80.13199,130.07,129.94,15.7796]
[1725241090244,7.6918,130.01,129.94,15.7796]
[1725241090448,7.6918,130.01,129.97,7.694]
[1725241090634,7.6912,130.02,129.97,7.694]
[1725241090829,20.0,130.01,129.97,7.694]
[1725241091948,22.6947,130.07,129.98,1.53834954]
[1725241092160,27.6888,130.06,130.01,19.2282]
[1725241093347,27.6888,130.06,130.01,26.9197]
[1725241093536,16.3467,130.1,130.01,19.2282]
[1725241093852,7.688,130.08,130.03,7.6902]
[1725241094037,20.0,130.07,130.03,7.6902]
[1725241094547,7.6888,130.06,130.01,19.2282]
[1725241094852,7.6888,130.06,130.02,7.6911]
[1725241095754,27.6881,130.07,130.03,7.6903]
[1725241096627,7.6876,130.08,130.04,7.6899]
[1725241097228,7.6876,130.08,130.03,26.9161]
[1725241098257,7.6884,130.07,130.03,19.2257]
[1725241098850,7.6888,130.06,130.01,7.6915]
[1725241100159,7.6882,130.07,130.03,7.6904]
[1725241101553,7.6877,130.08,130.03,7.6904]
[1725241102430,16.3467,130.1,130.02,26.9179]
[1725241102655,7.6892,130.06,130.01,7.6916]
[1725241102837,7.6895,130.05,130.01,7.6916]
[1725241104144,45.0,130.09,130.0,7.6921]
[1725241104145,7.69,130.04,130.0,7.6921]
[1725241104744,7.6905,130.03,129.99,19.2312]
[1725241105248,7.692,130.01,129.97,22.8629]
[1725241105440,7.692,130.01,129.97,7.694]
[1725241106263,7.692,130.01,129.98,1.538492]
[1725241106467,7.6912,130.02,129.98,7.6932]
[1725241107557,7.6906,130.03,129.98,7.6932]
[1725241107773,7.69,130.04,130.0,7.6922]
[1725241108063,7.6921,130.01,129.96,7.6946]
[1725241108265,7.6912,130.02,129.97,7.6935]
[1725241109059,7.6912,130.02,129.97,26.9279]
[1725241109847,7.6912,130.02,129.98,1.53843616]
[1725241110052,7.6912,130.02,129.98,9.23163616]